bitfinex/quotes_SOLUSD_20250815
["timestamp","ask_amount","ask_price","bid_price","bid_amount"]
[1755220008040,1e-08,192.82,192.8,49.16021525]
[1755220008240,1e-08,192.82,192.81,31.72482107]
[1755220008542,1e-08,192.82,192.81,63.08]
[1755220009147,1e-08,192.82,192.81,68.26645298]
[1755220010757,1e-08,192.82,192.81,68.28645298]
[1755220011348,6.40482108,192.82,192.81,37.08]
[1755220011958,0.68000001,192.82,192.81,37.08]
[1755220013761,4.15292014,192.82,192.81,42.26645298]
[1755220014060,9.87774121,192.82,192.81,37.06]
[1755220016268,13.75126229,192.82,192.81,37.06]
[1755220017658,7.34644122,192.82,192.81,37.06]
[1755220017865,13.07126229,192.82,192.81,37.06]
[1755220018567,7.34644122,192.82,192.81,42.24645298]
[1755220020184,13.75126229,192.82,192.81,37.06]
[1755220020347,13.75126229,192.82,192.76,0.03]
[1755220020552,5.72482107,192.77,192.76,0.03]
[1755220020759,13.07684903,192.77,192.76,0.03]
[1755220021147,43.74684903,192.77,192.76,0.03]
[1755220021352,37.35202796,192.77,192.76,5.21779829]
[1755220021576,33.47292013,192.77,192.76,0.03]
[1755220021773,39.8677412,192.77,192.76,0.03]
[1755220022368,33.47292013,192.77,192.76,0.03]
[1755220022558,5.72482107,192.79,192.76,0.74]
[1755220022757,3.48955088,192.78,192.77,43.55482107]
[1755220023007,1e-08,192.82,192.77,37.83]
[1755220023156,5.72482107,192.79,192.77,37.12]
[1755220023550,5.72482108,192.82,192.77,37.83]
[1755220023748,3.4890776,192.81,192.78,5.18726008]
[1755220023966,9.21389867,192.8,192.79,37.16]
[1755220024152,9.88389867,192.8,192.79,37.16]
[1755220024351,3.4890776,192.8,192.79,37.16]
[1755220024560,5.72482108,192.82,192.79,37.16]
[1755220024855,9.21281143,192.81,192.79,37.16]
[1755220025078,9.21281143,192.8,192.79,37.16]
[1755220025272,5.72482107,192.8,192.79,37.16]
[1755220025467,6.39482107,192.81,192.79,37.16]
[1755220025673,5.72482107,192.81,192.79,37.16]
[1755220026265,9.21260022,192.81,192.79,42.3468959]
[1755220026761,9.21260022,192.81,192.79,37.16]
[1755220026966,5.72482107,192.8,192.79,37.16]
[1755220028671,6.39482107,192.81,192.79,37.16]
[1755220029680,9.21260023,192.82,192.79,42.34694355]
[1755220029890,3.48777916,192.82,192.79,42.34694355]
[1755220030092,9.21260023,192.82,192.79,42.34694355]
[1755220030872,5.72482107,192.8,192.79,37.16]
[1755220031075,6.39482107,192.8,192.79,37.16]
[1755220031677,15.06935376,192.8,192.77,0.03]
[1755220031879,20.83103664,192.78,192.77,0.03]
[1755220032080,24.31881579,192.78,192.77,0.03]
[1755220032297,24.98881579,192.78,192.77,0.03]
[1755220033168,54.98881579,192.78,192.77,0.03]
[1755220033785,60.17607587,192.78,192.77,0.03]
[1755220037275,39.21260022,192.78,192.77,0.03]
[1755220038370,39.88260022,192.78,192.77,0.03]
[1755220042601,39.21260022,192.78,192.77,0.03]
[1755220045098,9.21260022,192.78,192.77,0.03]
[1755220045305,5.72482107,192.78,192.77,0.03]
[1755220045598,9.21260022,192.78,192.77,0.03]
[1755220045794,5.72482107,192.78,192.77,0.03]
[1755220046001,9.21260022,192.78,192.77,0.03]
[1755220046203,9.88260022,192.78,192.77,0.03]
[1755220047394,6.39482107,192.78,192.77,0.03]
[1755220047581,9.88260022,192.78,192.77,0.03]
[1755220047885,6.39482107,192.78,192.77,0.03]
[1755220048200,39.88260022,192.78,192.77,0.03]
[1755220049005,45.0698603,192.78,192.77,0.03]
[1755220049300,39.88260022,192.78,192.77,0.03]
[1755220049512,39.21260022,192.78,192.77,0.03]
[1755220049691,39.88260022,192.78,192.77,0.03]
[1755220050510,60.17607587,192.78,192.77,0.03]
[1755220050801,97.19607587,192.78,192.77,0.03]
[1755220052088,97.19607587,192.78,192.76,0.03]
[1755220052278,3.48777915,192.77,192.76,0.03]
[1755220052480,35.72482107,192.77,192.76,0.69]
[1755220053381,5.72482107,192.77,192.76,0.69]
[1755220053581,5.72482107,192.77,192.76,5.87779829]
[1755220054505,5.72482107,192.77,192.76,0.03]
[1755220054874,6.39482107,192.77,192.76,0.03]
[1755220055075,9.87177524,192.77,192.76,0.03]
[1755220055280,30.16551998,192.77,192.76,0.03]
[1755220055510,60.16551998,192.77,192.76,0.03]
[1755220055978,97.18551998,192.77,192.76,0.03]
[1755220056792,101.05257027,192.77,192.76,0.03]
[1755220057194,97.18551998,192.77,192.76,0.03]
[1755220057921,39.20177524,192.77,192.76,0.03]
[1755220058088,39.20177524,192.77,192.76,0.69]
[1755220058089,30.0,192.77,192.76,0.69]
[1755220058613,5.72482107,192.77,192.76,0.03]
[1755220059799,5.72482107,192.77,192.76,0.69]
[1755220060094,5.72482107,192.77,192.76,0.03]
[1755220061613,9.20725616,192.77,192.76,0.03]
[1755220061792,5.72482107,192.77,192.76,0.03]
[1755220062396,9.2072849,192.77,192.76,0.69]
[1755220062596,5.72482107,192.77,192.76,0.69]
[1755220062795,3.48246383,192.77,192.76,0.69]
[1755220063035,5.72482107,192.77,192.76,5.87767997]
[1755220063211,5.72482107,192.78,192.76,5.87767997]
[1755220064216,9.20866717,192.77,192.76,5.87767997]
[1755220064415,5.72482107,192.77,192.76,5.87767997]
[1755220064609,9.20866717,192.77,192.76,5.87767997]
[1755220064804,5.72482107,192.77,192.76,5.87767997]
[1755220065004,9.20866717,192.77,192.76,5.87767997]
[1755220066103,9.20866717,192.78,192.76,5.87767997]
[1755220066299,0.06,192.79,192.77,0.66]
[1755220066501,0.06,192.79,192.78,5.72482107]
[1755220066800,0.06,192.79,192.77,0.66]
[1755220066801,0.06,192.79,192.77,6.38482107]
[1755220067190,0.06,192.79,192.78,0.66]
[1755220068109,0.06,192.79,192.78,5.84726008]
[1755220068517,0.06,192.79,192.78,11.57208115]
[1755220068825,0.06,192.79,192.78,5.84726008]
[1755220071311,1e-08,192.79,192.78,11.57208115]
[1755220071508,1e-08,192.79,192.78,12.09080715]
[1755220071715,0.06,192.81,192.8,26.0]
[1755220071716,1e-08,192.81,192.8,26.0]
[1755220071906,1e-08,192.81,192.8,32.24349326]
[1755220072109,1e-08,192.81,192.8,32.90349326]
[1755220072312,1e-08,192.81,192.8,32.38482107]
[1755220073098,1e-08,192.81,192.8,32.90349326]
[1755220073499,1e-08,192.81,192.8,38.09021525]
[1755220076603,1e-08,192.81,192.8,117.47154306]
[1755220078721,0.06,192.86,192.8,39.64854806]
[1755220078920,0.06,192.86,192.84,31.72482107]
[1755220079122,0.06,192.86,192.84,68.72482107]
[1755220079296,0.06,192.86,192.84,63.66]
[1755220080900,6.46482107,192.85,192.82,2.076681]
[1755220081136,5.72482107,192.83,192.82,7.262865]
[1755220081301,6.40482107,192.84,192.82,42.186184]
[1755220081499,0.06,192.85,192.82,42.866184]
[1755220082206,0.06,192.85,192.82,42.186184]
[1755220082614,0.06,192.85,192.82,42.866184]
[1755220084894,0.06,192.85,192.82,42.186184]
[1755220087511,5.78482107,192.85,192.82,5.186184]
[1755220087719,5.72482107,192.83,192.82,5.186184]
[1755220087904,6.40482107,192.83,192.82,36.98]
[1755220088520,6.40482107,192.83,192.76,5.814821]
[1755220088735,30.68,192.82,192.77,36.98]
[1755220088922,0.68,192.81,192.77,36.98]
[1755220089241,30.0,192.82,192.77,42.16749991]
[1755220089447,0.68,192.8,192.77,42.16749991]
[1755220089819,0.68,192.79,192.77,42.16749991]
[1755220090007,36.40482107,192.82,192.77,42.16749991]
[1755220090222,36.40482107,192.82,192.77,42.84749991]
[1755220090426,0.68,192.82,192.78,0.68]
[1755220090735,6.40482107,192.82,192.77,55.13632285]
[1755220090914,0.68,192.81,192.77,55.13632285]
[1755220091238,0.68,192.81,192.77,55.81632285]
[1755220091734,5.72482107,192.82,192.77,55.81632285]
[1755220091931,6.40482107,192.82,192.77,55.81632285]
[1755220092129,6.40482107,192.82,192.78,0.68]
[1755220092330,0.06,192.85,192.78,0.68]
[1755220092636,5.72482107,192.83,192.77,60.86114392]
[1755220092925,5.72482107,192.83,192.78,0.68]
[1755220093133,6.40482107,192.83,192.79,5.18699102]
[1755220093329,5.72482107,192.83,192.8,36.98]
[1755220093628,5.72482107,192.81,192.8,36.98]
[1755220093828,15.10621557,192.8,192.76,0.03]
[1755220094035,5.72482107,192.77,192.76,0.03]
[1755220094419,0.68,192.79,192.76,0.03]
[1755220094611,5.72482107,192.79,192.76,42.19779829]
[1755220095037,5.72482107,192.79,192.78,0.03]
[1755220096027,6.40482107,192.79,192.78,0.03]
[1755220098228,5.72482107,192.79,192.78,0.03]
[1755220098631,5.72482107,192.8,192.78,0.03]
[1755220098832,0.68,192.81,192.78,0.03]
[1755220099142,5.72482107,192.82,192.79,36.98]
[1755220099713,5.72482107,192.81,192.79,36.98]
[1755220100152,0.68,192.8,192.79,36.98]
[1755220100316,5.72482107,192.81,192.79,36.98]
[1755220100514,5.72482107,192.83,192.79,36.98]
[1755220100711,6.40482107,192.83,192.79,36.98]
[1755220100926,0.06,192.85,192.8,5.18672199]
[1755220101127,5.72482107,192.84,192.8,5.86672199]
[1755220101525,6.40482107,192.84,192.8,5.86672199]
[1755220102745,0.06,192.85,192.81,0.68]
[1755220103248,0.06,192.85,192.82,43.38482107]
[1755220103423,0.06,192.85,192.84,5.72482107]
[1755220104043,0.06,192.85,192.84,6.92338568]
[1755220104746,0.06,192.85,192.84,12.10903181]
[1755220105641,0.06,192.85,192.84,11.5904672]
[1755220107937,0.06,192.86,192.84,38.10903181]
[1755220108234,1e-08,192.86,192.85,43.38482107]
[1755220108551,0.06,192.91,192.87,26.0]
[1755220108767,0.06,192.91,192.9,31.72482107]
[1755220109252,0.06,192.91,192.9,31.86403317]
[1755220109421,0.06,192.91,192.9,37.58885424]
[1755220110146,0.06,192.91,192.9,31.18403317]
[1755220110527,0.06,192.91,192.9,36.90885424]
[1755220111737,0.06,192.91,192.9,37.57885424]
[1755220111933,0.06,192.91,192.9,36.90885424]
[1755220112133,0.06,192.91,192.9,37.57885424]
[1755220112345,0.06,192.91,192.9,36.90885424]
[1755220112735,0.06,192.91,192.9,73.86885424]
[1755220112937,0.06,192.91,192.9,68.14403317]
[1755220114148,0.72,192.91,192.9,36.96]
[1755220115049,0.06,192.91,192.9,42.14403317]
[1755220116545,0.72,192.91,192.9,42.14403317]
[1755220116751,0.72,192.91,192.9,36.96]
[1755220116952,0.72,192.91,192.9,42.14403317]
[1755220117332,0.06,192.91,192.9,42.14403317]
[1755220117532,0.06,192.91,192.9,47.86885424]
[1755220117832,0.06,192.91,192.9,48.53885424]
[1755220119363,0.06,192.91,192.9,42.81403317]
[1755220119543,0.06,192.91,192.9,48.53885424]
[1755220120956,0.06,192.91,192.9,42.81403317]
[1755220121151,0.06,192.91,192.9,42.14403317]
[1755220121757,0.06,192.91,192.9,47.86885424]
[1755220122358,0.06,192.91,192.9,42.14403317]
[1755220122541,0.06,192.91,192.9,47.86885424]
[1755220123855,0.06,192.91,192.9,48.53885424]
[1755220124458,0.06,192.93,192.92,26.0]
[1755220124663,0.06,192.93,192.92,68.68482107]
[1755220124846,0.06,192.93,192.92,69.35482107]
[1755220125537,0.06,192.93,192.92,68.68482107]
[1755220125850,0.06,192.93,192.92,73.86831681]
[1755220126052,0.72,192.93,192.92,68.14349574]
[1755220126454,0.06,192.93,192.92,68.14349574]
[1755220129067,0.72,192.93,192.92,68.14349574]
[1755220129448,0.06,192.93,192.92,68.14349574]
[1755220135072,0.06,192.93,192.92,42.14349574]
[1755220136906,6.44482107,192.93,192.89,0.03]
[1755220137101,6.38482107,192.92,192.9,42.12403317]
[1755220137397,5.78482107,192.93,192.9,42.12403317]
[1755220137970,6.38482107,192.92,192.9,42.12403317]
[1755220138279,0.66,192.92,192.9,42.12403317]
[1755220139295,5.78482107,192.93,192.9,42.12403317]
[1755220140370,0.06,192.93,192.91,0.67]
[1755220140572,0.06,192.93,192.92,36.94]
[1755220141077,6.50482107,192.93,192.92,36.94]
[1755220141586,0.06,192.93,192.92,36.94]
[1755220141969,6.50482107,192.93,192.92,36.94]
[1755220143390,6.50482107,192.93,192.89,0.03]
[1755220143592,15.10621557,192.89,192.83,0.03]
[1755220143773,5.72482107,192.86,192.83,0.03]
[1755220144092,24.30640616,192.86,192.83,0.03]
[1755220144592,9.92019059,192.86,192.83,0.03]
[1755220144774,6.44482107,192.86,192.83,0.03]
[1755220145465,9.92019059,192.86,192.83,0.03]
[1755220145787,6.44482107,192.86,192.83,0.03]
[1755220145980,4.19536952,192.89,192.83,0.03]
[1755220146289,6.44482107,192.89,192.85,36.97]
[1755220146474,5.72482107,192.88,192.85,36.97]
[1755220147174,5.72482107,192.89,192.85,36.97]
[1755220147390,5.72482107,192.89,192.86,5.18510836]
[1755220148079,0.72,192.91,192.86,5.89510836]
[1755220148080,5.72482107,192.9,192.86,5.89510836]
[1755220148469,0.72,192.91,192.86,5.18510836]
[1755220148681,3.48069778,192.9,192.87,0.71]
[1755220148881,5.72482107,192.91,192.88,36.94]
[1755220149066,6.44482107,192.91,192.88,36.94]
[1755220149495,0.72,192.9,192.88,36.94]
[1755220149694,5.72482107,192.91,192.88,42.12450585]
[1755220149893,3.48137994,192.92,192.89,0.71]
[1755220150072,6.44482107,192.92,192.88,42.12450585]
[1755220150769,0.72,192.92,192.88,42.12450585]
[1755220151195,0.72,192.92,192.88,42.83450585]
[1755220152289,6.44482107,192.92,192.88,42.83450585]
[1755220152485,5.72482107,192.91,192.88,42.12450585]
[1755220152690,5.72482107,192.9,192.88,42.12450585]
[1755220152997,6.44482107,192.9,192.88,36.94]
[1755220154074,4.20173817,192.92,192.88,42.12439701]
[1755220154270,5.72482107,192.91,192.88,42.12439701]
[1755220154675,6.44482107,192.91,192.88,42.12439701]
[1755220155395,5.72482107,192.89,192.88,36.94]
[1755220155603,6.44482107,192.89,192.88,36.94]
[1755220155906,9.92523127,192.89,192.86,36.94]
[1755220156206,5.72482107,192.87,192.86,36.94]
[1755220157901,6.44482107,192.87,192.85,0.03]
[1755220158154,6.44482107,192.86,192.85,0.03]
[1755220163712,5.72482107,192.86,192.85,0.03]
[1755220163913,3.53254786,192.89,192.85,0.03]
[1755220164126,5.72482107,192.86,192.85,0.03]
[1755220164698,0.72,192.88,192.85,0.74]
[1755220164699,5.72482107,192.88,192.85,0.74]
[1755220164904,5.72482107,192.88,192.86,37.65]
[1755220165639,0.06,192.89,192.87,5.89459922]
[1755220165799,35.72482107,192.88,192.86,36.94]
[1755220166000,5.72482107,192.87,192.86,36.94]
[1755220167917,6.44482107,192.87,192.86,36.94]
[1755220168115,5.72482107,192.87,192.86,36.94]
[1755220168520,6.44482107,192.87,192.85,0.03]
[1755220168815,6.44482107,192.86,192.85,0.03]
[1755220169735,26.736145,192.86,192.85,0.03]
[1755220170028,30.20939351,192.86,192.85,0.03]
[1755220173155,60.20939351,192.86,192.85,0.03]
[1755220177538,39.19806958,192.86,192.85,0.03]
[1755220177713,35.72482107,192.86,192.85,0.03]
[1755220178322,39.1989564,192.86,192.85,0.03]
[1755220178517,9.1989564,192.86,192.85,0.03]
[1755220179125,30.19028033,192.86,192.85,0.03]
[1755220181561,60.19028033,192.86,192.85,0.03]
[1755220182119,39.1989564,192.86,192.85,0.7]
[1755220182349,30.0,192.86,192.85,0.7]
[1755220183167,60.19459117,192.86,192.85,0.03]
[1755220183519,54.30948281,192.86,192.85,0.03]
[1755220183822,39.20326724,192.86,192.85,0.03]
[1755220184025,39.20326724,192.86,192.85,0.7]
[1755220184531,5.72482107,192.86,192.85,0.7]
[1755220186430,9.20471561,192.86,192.85,0.03]
[1755220186634,30.19603954,192.86,192.85,0.03]
[1755220186838,60.19603954,192.86,192.85,0.03]
[1755220189252,54.47121847,192.86,192.85,0.03]
[1755220189462,60.19603954,192.86,192.85,0.03]
[1755220189653,68.40264421,192.86,192.83,0.03]
[1755220189853,20.83103664,192.84,192.83,0.03]
[1755220190037,54.31093118,192.84,192.83,0.03]
[1755220190437,24.31093118,192.84,192.83,0.03]
[1755220190744,25.01093118,192.84,192.83,0.03]
[1755220191045,24.31093118,192.84,192.83,0.03]
[1755220191571,3.47989454,192.84,192.83,0.7]
[1755220191762,5.72482107,192.84,192.83,0.7]
[1755220192134,9.20471561,192.84,192.83,0.7]
[1755220192469,5.72482107,192.84,192.83,0.7]
[1755220192934,5.72482107,192.86,192.83,5.88591505]
[1755220193135,3.48296846,192.86,192.84,0.67]
[1755220193337,0.06,192.87,192.84,0.67]
[1755220193565,9.20823117,192.86,192.85,0.67]
[1755220193764,39.20823117,192.86,192.85,0.67]
[1755220194563,3.4834101,192.86,192.85,0.67]
[1755220195061,0.06,192.87,192.85,5.85537723]
[1755220195430,0.06,192.87,192.86,0.67]
[1755220196363,0.06,192.87,192.86,5.85510836]
[1755220200235,0.06,192.87,192.85,36.97]
[1755220200651,0.06,192.87,192.85,42.1552829]
[1755220200961,0.06,192.87,192.86,0.72]
[1755220201270,0.06,192.87,192.86,6.44482107]
[1755220201439,0.06,192.89,192.88,26.0]
[1755220201646,0.06,192.89,192.88,36.90939178]
[1755220201846,0.06,192.89,192.88,37.62939178]
[1755220204136,1e-08,192.89,192.88,37.62939178]
[1755220204857,1e-08,192.89,192.88,31.90457071]
[1755220205171,1e-08,192.89,192.88,37.62939178]
[1755220209883,1e-08,192.89,192.88,74.56939178]
[1755220211250,1e-08,192.91,192.9,5.72482107]
[1755220211585,0.06,192.95,192.93,26.0]
[1755220211886,0.06,192.95,192.94,42.66482107]
[1755220212050,0.06,192.95,192.94,47.8477795]
[1755220212471,0.78,192.95,192.94,42.10295843]
[1755220212876,6.50482107,192.95,192.94,36.92]
[1755220213578,0.78,192.95,192.94,36.92]
[1755220214583,0.78,192.95,192.94,42.10295843]
[1755220215749,0.78,192.95,192.94,36.92]
[1755220216450,0.78,192.95,192.94,42.10295843]
[1755220216653,0.06,192.95,192.94,42.82295843]
[1755220216967,0.06,192.99,192.96,26.0]
[1755220217166,0.06,192.99,192.96,68.64482107]
[1755220217566,0.06,192.99,192.96,69.36482107]
[1755220217879,0.06,192.99,192.96,74.54724229]
[1755220218453,0.06,192.99,192.96,68.82242122]
[1755220218652,0.06,192.99,192.96,74.54724229]
[1755220221053,1e-08,192.97,192.96,74.54724229]
[1755220221253,1e-08,192.99,192.96,75.06548441]
[1755220221477,1e-08,192.99,192.98,5.72482107]
[1755220221673,1e-08,192.99,192.98,42.64482107]
[1755220221877,1e-08,192.99,192.98,43.36482107]
[1755220222075,1e-08,192.99,192.98,48.5467052]
[1755220222960,1e-08,192.99,192.98,42.82188413]
[1755220223158,1e-08,192.99,192.98,48.5467052]
[1755220225563,1e-08,192.99,192.98,79.74110918]
[1755220226078,1e-08,192.99,192.98,159.64110918]
[1755220226277,1e-08,192.99,192.98,159.12292077]
[1755220226470,1e-08,192.99,192.98,91.5267052]
[1755220226689,1e-08,192.99,192.98,42.08188413]
[1755220227696,1e-08,192.99,192.98,68.08188413]
[1755220228587,1e-08,192.99,192.98,74.5267052]
[1755220229170,1e-08,192.99,192.98,63.63292077]
[1755220229372,1e-08,192.99,192.98,64.15110918]
[1755220229583,1e-08,192.99,192.98,42.80188413]
[1755220229773,1e-08,192.99,192.98,47.8067052]
[1755220231874,1e-08,192.99,192.98,48.4767052]
[1755220232670,1e-08,192.99,192.98,63.58292077]
[1755220233397,1e-08,192.99,192.98,143.48292077]
[1755220234901,1e-08,192.99,192.98,127.7067052]
[1755220235305,1e-08,192.99,192.98,128.3767052]
[1755220236577,1e-08,192.99,192.98,122.65188413]
[1755220236792,1e-08,192.99,192.98,127.7067052]
[1755220237202,1e-08,192.99,192.98,128.3767052]
[1755220239677,1e-08,192.99,192.98,159.05292077]
[1755220240209,1e-08,192.99,192.98,158.38292077]
[1755220240408,1e-08,192.99,192.98,127.7067052]
[1755220240594,0.68000001,192.99,192.98,129.7813402]
[1755220241106,0.68000001,192.99,192.98,127.7067052]
[1755220241482,1e-08,192.99,192.98,127.7067052]
[1755220241895,1e-08,192.99,192.98,121.98188413]
[1755220242206,1e-08,192.99,192.98,127.7067052]
[1755220246188,1e-08,192.99,192.98,128.3767052]
[1755220247903,1e-08,192.99,192.98,127.7067052]
[1755220249100,0.68000001,192.99,192.98,127.7067052]
[1755220249519,0.68000001,192.99,192.98,47.8067052]
[1755220250409,1e-08,192.99,192.98,47.8067052]
[1755220251107,1e-08,192.99,192.98,42.08188413]
[1755220251322,0.68000001,192.99,192.98,47.8067052]
[1755220251509,0.68000001,192.99,192.98,68.08188413]
[1755220252506,1e-08,192.99,192.98,73.8067052]
[1755220257101,1e-08,192.99,192.98,153.7067052]
[1755220259503,1e-08,192.99,192.98,147.98188413]
[1755220259712,0.68000001,192.99,192.98,153.7067052]
[1755220260330,6.40482108,192.99,192.96,0.03]
[1755220260507,5.72482107,192.97,192.95,0.03]
[1755220260703,9.210853,192.96,192.94,2.105065]
[1755220261021,6.40482107,192.95,192.94,2.105065]
[1755220261229,9.89390253,192.95,192.94,0.03]
[1755220261709,6.40482107,192.95,192.94,0.03]
[1755220261920,9.89177992,192.95,192.94,0.03]
[1755220262327,6.40482107,192.95,192.94,0.03]
[1755220262505,9.89045196,192.95,192.94,0.03]
[1755220263201,6.40482107,192.95,192.94,0.03]
[1755220263522,9.88905145,192.95,192.94,0.03]
[1755220264232,6.40482107,192.95,192.94,0.03]
[1755220266125,15.06929398,192.95,192.94,0.03]
[1755220266314,9.88660417,192.95,192.94,0.03]
[1755220266511,6.40482107,192.95,192.94,0.03]
[1755220266711,9.88660417,192.95,192.94,0.03]
[1755220267122,6.40482107,192.95,192.94,0.03]
[1755220270750,6.46482107,192.95,192.94,0.03]
[1755220288736,0.06,192.95,192.94,0.03]
[1755220288947,0.06,192.95,192.94,37.56]
[1755220289141,0.06,192.95,192.94,42.74295843]
[1755220289954,0.06,192.95,192.94,48.4677795]
[1755220290166,1e-08,192.95,192.94,48.4677795]
[1755220291839,1e-08,192.95,192.94,48.98607534]
[1755220292257,1e-08,192.97,192.96,26.0]
[1755220292467,1e-08,192.97,192.96,31.72482107]
[1755220292847,1e-08,192.97,192.96,48.03927876]
[1755220293269,1e-08,192.97,192.96,53.22169998]
[1755220293643,1e-08,192.97,192.96,47.49687891]
[1755220293943,1e-08,192.97,192.96,53.22169998]
[1755220296563,1e-08,192.97,192.96,90.08169998]
[1755220296968,1e-08,192.97,192.96,68.73242122]
[1755220297135,1e-08,192.97,192.96,74.45724229]
[1755220298346,1e-08,192.97,192.96,154.35724229]
[1755220302557,1e-08,192.97,192.96,169.46345786]
[1755220304275,1e-08,193.01,193.0,26.0]
[1755220304478,1e-08,193.01,193.0,148.46482107]
[1755220304771,1e-08,193.01,193.0,149.15482107]
[1755220304943,1e-08,193.01,193.0,148.46482107]
[1755220305149,0.67000001,193.01,193.0,148.46482107]
[1755220305453,1e-08,193.01,193.0,148.46482107]
[1755220305664,1e-08,193.01,193.0,153.64616822]
[1755220306053,1e-08,193.01,193.0,154.33616822]
[1755220307150,1e-08,193.01,193.0,169.44238379]
[1755220307477,1e-08,193.01,193.0,153.64616822]
[1755220308256,0.67000001,193.01,193.0,31.18134715]
[1755220308572,0.67000001,193.01,193.0,68.00134715]
[1755220312780,1e-08,193.01,193.0,74.41616822]
[1755220316785,1e-08,193.01,193.0,169.42238379]
[1755220322785,1e-08,193.01,193.0,163.69756272]
[1755220323088,1e-08,193.01,193.0,169.42238379]
[1755220323688,1e-08,193.01,193.0,169.45238379]
[1755220324097,1e-08,193.01,193.0,168.76238379]
[1755220325171,1e-08,193.01,193.0,153.65616822]
[1755220326095,1e-08,193.01,193.0,154.31616822]
[1755220326702,1e-08,193.03,193.01,15.10621557]
[1755220327000,1e-08,193.05,193.04,31.18027351]
[1755220327175,1e-08,193.05,193.04,154.12312193]
[1755220327377,1e-08,193.05,193.04,153.60509458]
[1755220327597,1e-08,193.05,193.04,154.26509458]
[1755220328494,1e-08,193.05,193.04,153.60509458]
[1755220330593,1e-08,193.05,193.04,154.26509458]
[1755220332100,1e-08,193.05,193.04,169.37131015]
[1755220332477,1e-08,193.05,193.04,89.47131015]
[1755220332802,0.69,193.13,193.08,26.0]
[1755220332996,0.69,193.13,193.12,31.72482107]
[1755220333196,4.33779836,193.22,193.12,68.50482107]
[1755220333503,0.69,193.15,193.14,5.72482107]
[1755220333697,0.69,193.15,193.14,42.50482107]
[1755220334401,0.69,193.15,193.14,47.68241245]
[1755220334578,0.69,193.15,193.14,41.95759138]
[1755220334779,0.69,193.15,193.14,47.68241245]
[1755220336300,24.61917099,193.24,193.14,47.68241245]
[1755220336301,0.69,193.17,193.14,47.68241245]
[1755220336503,0.69,193.17,193.16,5.72482107]
[1755220336806,0.69,193.17,193.16,42.48482107]
[1755220337486,0.69,193.19,193.16,42.48482107]
[1755220337683,0.69,193.19,193.17,5.72482107]
[1755220337885,0.69,193.19,193.18,36.76]
[1755220338293,0.69,193.19,193.18,47.66134037]
[1755220338819,0.69,193.19,193.18,41.9365193]
[1755220339290,0.75,193.21,193.18,47.66134037]
[1755220339504,0.75,193.21,193.19,5.72482107]
[1755220339693,0.06,193.21,193.2,36.76]
[1755220339894,0.75,193.21,193.16,5.17705529]
[1755220340098,4.21856437,193.21,193.17,36.76]
[1755220340300,0.69,193.2,193.17,41.93661869]
[1755220340894,0.69,193.19,193.17,47.66143976]
[1755220341094,0.06,193.21,193.17,47.66143976]
[1755220341312,0.69,193.18,193.17,47.66143976]
[1755220342015,0.06,193.21,193.17,47.66143976]
[1755220342319,0.75,193.21,193.2,5.17598343]
[1755220342520,0.75,193.21,193.2,41.93598343]
[1755220343217,0.75,193.21,193.2,36.76]
[1755220344288,0.75,193.21,193.2,41.93598343]
[1755220344511,0.75,193.21,193.2,47.6608045]
[1755220345311,0.75,193.21,193.2,5.17598343]
[1755220345617,0.75,193.21,193.2,41.91598343]
[1755220346908,0.06,193.21,193.2,47.6408045]
[1755220347797,0.75,193.21,193.2,36.74]
[1755220349440,0.06,193.21,193.2,41.91598343]
[1755220350593,0.75,193.21,193.2,41.91598343]
[1755220351293,0.06,193.21,193.2,41.91598343]